[Event "*** Titled Tuesday Blitz"]
[Site "Chess.com"]
[Date "2019.03.05"]
[Round "9"]
[White "Korchmar_Vasiliy"]
[Black "Micki-taryan"]
[Result "0-1"]
[WhiteElo "2765"]
[BlackElo "2965"]
[TimeControl "180+2"]
[EndTime "15:13:59 PST"]
[Termination "Micki-taryan won by checkmate"]

1. d4 {[%clk 0:03:01.4]} 1... Nf6 {[%clk 0:03:00.4]} 2. c4 {[%clk 0:03:02.6]}
2... e6 {[%clk 0:03:01.9]} 3. g3 {[%clk 0:03:04]} 3... c5 {[%clk 0:03:02.3]} 4.
d5 {[%clk 0:03:05.5]} 4... exd5 {[%clk 0:03:04.2]} 5. cxd5 {[%clk 0:03:07.4]}
5... d6 {[%clk 0:03:06.1]} 6. Nc3 {[%clk 0:03:08.9]} 6... g6 {[%clk 0:03:08]} 7.
Bg2 {[%clk 0:03:10.5]} 7... Bg7 {[%clk 0:03:09.6]} 8. Nf3 {[%clk 0:03:12.2]}
8... O-O {[%clk 0:03:11.5]} 9. O-O {[%clk 0:03:13.8]} 9... a6 {[%clk 0:03:13.1]}
10. a4 {[%clk 0:03:14.6]} 10... Re8 {[%clk 0:03:14.8]} 11. Bf4 {[%clk
0:03:15.6]} 11... Nh5 {[%clk 0:03:14.5]} 12. Bg5 {[%clk 0:03:16.1]} 12... Qc7
{[%clk 0:03:16.1]} 13. Rc1 {[%clk 0:03:16.2]} 13... h6 {[%clk 0:03:10.2]} 14.
Bd2 {[%clk 0:03:15.9]} 14... Nd7 {[%clk 0:03:11]} 15. b4 {[%clk 0:03:15.6]}
15... Nhf6 {[%clk 0:02:43.2]} 16. Re1 {[%clk 0:03:16.3]} 16... Ne4 {[%clk
0:02:37.7]} 17. Nxe4 {[%clk 0:03:16.6]} 17... Rxe4 {[%clk 0:02:39.6]} 18. a5
{[%clk 0:02:44]} 18... Qd8 {[%clk 0:02:26.4]} 19. Qb3 {[%clk 0:02:33.8]} 19...
b5 {[%clk 0:02:16]} 20. axb6 {[%clk 0:02:15.9]} 20... Qxb6 {[%clk 0:02:15]} 21.
Qa4 {[%clk 0:01:57.4]} 21... Qb5 {[%clk 0:01:38.7]} 22. Qc2 {[%clk 0:01:48.5]}
22... Re8 {[%clk 0:01:32.5]} 23. bxc5 {[%clk 0:01:27.5]} 23... Nxc5 {[%clk
0:01:33.3]} 24. Bf4 {[%clk 0:01:29.1]} 24... Bf5 {[%clk 0:01:31.7]} 25. Qa2
{[%clk 0:01:20.9]} 25... Ne4 {[%clk 0:01:28.4]} 26. Bf1 {[%clk 0:00:53.7]} 26...
Qd7 {[%clk 0:01:13]} 27. Rc6 {[%clk 0:00:49.5]} 27... g5 {[%clk 0:01:08.8]} 28.
Be3 {[%clk 0:00:47.1]} 28... a5 {[%clk 0:00:55.2]} 29. Rec1 {[%clk 0:00:48]}
29... Nc5 {[%clk 0:00:37.2]} 30. Nd4 {[%clk 0:00:40.9]} 30... Be4 {[%clk
0:00:34.5]} 31. Nb5 {[%clk 0:00:39.6]} 31... Bf8 {[%clk 0:00:25.2]} 32. Nc7
{[%clk 0:00:40.2]} 32... Rec8 {[%clk 0:00:09.6]} 33. Nxa8 {[%clk 0:00:40.6]}
33... Rxa8 {[%clk 0:00:11.5]} 34. Bd4 {[%clk 0:00:31.9]} 34... a4 {[%clk
0:00:12]} 35. Rb6 {[%clk 0:00:28.4]} 35... Qf5 {[%clk 0:00:12.1]} 36. Qa3 {[%clk
0:00:17.7]} 36... Bxd5 {[%clk 0:00:13.1]} 37. Rxd6 {[%clk 0:00:11.7]} 37... Nb3
{[%clk 0:00:09.3]} 38. Rc7 {[%clk 0:00:08.7]} 38... Nxd4 {[%clk 0:00:09]} 39.
Qc5 {[%clk 0:00:07.5]} 39... Bxd6 {[%clk 0:00:09.4]} 40. Qxd6 {[%clk 0:00:09.4]}
40... Qe4 {[%clk 0:00:10.1]} 41. f3 {[%clk 0:00:09.1]} 41... Nxf3+ {[%clk
0:00:10.8]} 42. exf3 {[%clk 0:00:09.7]} 42... Qe3+ {[%clk 0:00:11.9]} 43. Kg2
{[%clk 0:00:07.9]} 43... Qxf3+ {[%clk 0:00:13.3]} 44. Kg1 {[%clk 0:00:07.9]}
44... Qe3# {[%clk 0:00:14]} 0-1

[Event "*** Titled Tuesday Blitz"]
[Site "Chess.com"]
[Date "2019.03.05"]
[Round "9"]
[White "Alopekos"]
[Black "Gabrielian_Artur"]
[Result "0-1"]
[WhiteElo "2462"]
[BlackElo "2735"]
[TimeControl "180+2"]
[EndTime "15:14:05 PST"]
[Termination "Gabrielian_Artur won by resignation"]

1. e4 {[%clk 0:03:01.9]} 1... c5 {[%clk 0:03:00.4]} 2. Nf3 {[%clk 0:03:02.6]}
2... d6 {[%clk 0:03:00.9]} 3. d4 {[%clk 0:03:03.7]} 3... cxd4 {[%clk 0:03:02.1]}
4. Nxd4 {[%clk 0:03:05.6]} 4... Nf6 {[%clk 0:03:03.1]} 5. Nc3 {[%clk 0:03:07]}
5... Nc6 {[%clk 0:03:04.4]} 6. Bg5 {[%clk 0:03:00.4]} 6... e6 {[%clk 0:03:03.4]}
7. Qd2 {[%clk 0:03:01.7]} 7... a6 {[%clk 0:03:04.4]} 8. O-O-O {[%clk 0:03:02.9]}
8... Bd7 {[%clk 0:03:05.2]} 9. f4 {[%clk 0:03:00.3]} 9... Be7 {[%clk 0:03:05.4]}
10. Nxc6 {[%clk 0:02:53.9]} 10... Bxc6 {[%clk 0:03:05.8]} 11. Bd3 {[%clk
0:02:54.1]} 11... h6 {[%clk 0:03:04.9]} 12. Bh4 {[%clk 0:02:47.5]} 12... b5
{[%clk 0:02:53.8]} 13. e5 {[%clk 0:02:29.5]} 13... dxe5 {[%clk 0:02:48.1]} 14.
fxe5 {[%clk 0:02:29.7]} 14... Nd7 {[%clk 0:02:42.6]} 15. Bxe7 {[%clk 0:02:25.9]}
15... Qxe7 {[%clk 0:02:43.1]} 16. Be4 {[%clk 0:01:10.9]} 16... Nxe5 {[%clk
0:02:42.9]} 17. Qd4 {[%clk 0:01:10.3]} 17... Qg5+ {[%clk 0:02:33.4]} 18. Kb1
{[%clk 0:01:09.8]} 18... O-O {[%clk 0:01:57.1]} 19. h4 {[%clk 0:01:08.4]} 19...
Qf6 {[%clk 0:00:33.6]} 20. Rdf1 {[%clk 0:01:08.4]} 20... Rfd8 {[%clk 0:00:21.3]}
21. Qc5 {[%clk 0:01:01.7]} 21... Nd7 {[%clk 0:00:22.5]} 22. Qxc6 {[%clk
0:00:59.2]} 22... Qe7 {[%clk 0:00:23.7]} 23. Qxa8 {[%clk 0:00:54]} 23... Rxa8
{[%clk 0:00:24.3]} 24. Bxa8 {[%clk 0:00:55.9]} 24... Nc5 {[%clk 0:00:17.7]} 25.
Rd1 {[%clk 0:00:20.8]} 25... b4 {[%clk 0:00:17.6]} 26. Ne4 {[%clk 0:00:21.6]}
26... Na4 {[%clk 0:00:18.8]} 27. Bc6 {[%clk 0:00:20.5]} 27... Nb6 {[%clk
0:00:19.9]} 28. h5 {[%clk 0:00:03.3]} 28... Qc7 {[%clk 0:00:20.9]} 29. Rd6
{[%clk 0:00:04.3]} 29... Nc4 {[%clk 0:00:21.6]} 30. Rd4 {[%clk 0:00:03]} 30...
Qxc6 {[%clk 0:00:22.1]} 31. Rhd1 {[%clk 0:00:04.6]} 31... Kh7 {[%clk 0:00:22]}
32. Nd2 {[%clk 0:00:03.3]} 32... Ne3 {[%clk 0:00:20.7]} 33. Rc1 {[%clk
0:00:04.7]} 33... a5 {[%clk 0:00:21.8]} 34. g4 {[%clk 0:00:03.9]} 34... Qc5
{[%clk 0:00:21.5]} 35. Re4 {[%clk 0:00:04.2]} 35... Nd5 {[%clk 0:00:22.8]} 36.
Nb3 {[%clk 0:00:04.8]} 36... Qb6 {[%clk 0:00:24.1]} 37. Rf1 {[%clk 0:00:03.4]}
37... a4 {[%clk 0:00:25.4]} 38. Nc1 {[%clk 0:00:04.7]} 38... a3 {[%clk
0:00:25.1]} 39. Rxf7 {[%clk 0:00:04.4]} 39... axb2 {[%clk 0:00:26.5]} 40. Kxb2
{[%clk 0:00:06]} 40... Nc3 {[%clk 0:00:26.4]} 41. Rc4 {[%clk 0:00:04.1]} 41...
Qa5 {[%clk 0:00:26]} 42. a4 {[%clk 0:00:03.1]} 42... Nxa4+ {[%clk 0:00:23.9]}
43. Kb3 {[%clk 0:00:03.7]} 43... Nc3 {[%clk 0:00:23.5]} 44. Rxb4 {[%clk
0:00:04.5]} 44... Nb5 {[%clk 0:00:19.1]} 45. Kc4 {[%clk 0:00:03.2]} 45... Nd6+
{[%clk 0:00:19.5]} 0-1

[Event "*** Titled Tuesday Blitz"]
[Site "Chess.com"]
[Date "2019.03.05"]
[Round "9"]
[White "UCantHandleDenker"]
[Black "MishkaFighter"]
[Result "0-1"]
[WhiteElo "2544"]
[BlackElo "2378"]
[TimeControl "180+2"]
[EndTime "15:14:09 PST"]
[Termination "MishkaFighter won by resignation"]

1. Nf3 {[%clk 0:03:00.3]} 1... g6 {[%clk 0:03:00.5]} 2. g3 {[%clk 0:03:02.2]}
2... Bg7 {[%clk 0:03:00.9]} 3. Bg2 {[%clk 0:03:03.6]} 3... c5 {[%clk 0:03:02.3]}
4. O-O {[%clk 0:03:04.9]} 4... Nc6 {[%clk 0:03:02.8]} 5. d3 {[%clk 0:03:05]}
5... e6 {[%clk 0:02:58.8]} 6. Nbd2 {[%clk 0:03:05.1]} 6... Nge7 {[%clk
0:02:58.8]} 7. e4 {[%clk 0:03:06.5]} 7... O-O {[%clk 0:02:59.3]} 8. Re1 {[%clk
0:03:04.3]} 8... d5 {[%clk 0:02:59.5]} 9. h4 {[%clk 0:02:44.2]} 9... h6 {[%clk
0:02:42.8]} 10. a4 {[%clk 0:02:41.6]} 10... b6 {[%clk 0:02:43.1]} 11. c3 {[%clk
0:02:40]} 11... Ba6 {[%clk 0:02:41.5]} 12. Bf1 {[%clk 0:02:40.2]} 12... Qd7
{[%clk 0:02:34.3]} 13. e5 {[%clk 0:02:35.1]} 13... Rac8 {[%clk 0:02:23.5]} 14.
Nb1 {[%clk 0:02:24.1]} 14... f6 {[%clk 0:02:15.4]} 15. exf6 {[%clk 0:02:20.7]}
15... Rxf6 {[%clk 0:02:17.3]} 16. Bg2 {[%clk 0:02:11.7]} 16... Rcf8 {[%clk
0:02:15.3]} 17. Na3 {[%clk 0:02:11.1]} 17... e5 {[%clk 0:01:52.6]} 18. Nb5
{[%clk 0:01:56.7]} 18... Qg4 {[%clk 0:01:39.4]} 19. Nc7 {[%clk 0:01:12.2]} 19...
Bxd3 {[%clk 0:01:30.1]} 20. Nxd5 {[%clk 0:00:59.2]} 20... Rxf3 {[%clk
0:01:17.9]} 21. Ne3 {[%clk 0:00:45.5]} 21... Qe4 {[%clk 0:01:08.9]} 22. Bxf3
{[%clk 0:00:24.6]} 22... Rxf3 {[%clk 0:01:10.8]} 23. Ng2 {[%clk 0:00:25.3]}
23... Qf5 {[%clk 0:01:00.2]} 24. Ne3 {[%clk 0:00:24.6]} 24... Qd7 {[%clk
0:01:00]} 25. Qxf3 {[%clk 0:00:24.6]} 25... e4 {[%clk 0:01:01.5]} 26. Qg2 {[%clk
0:00:25.1]} 26... Ne5 {[%clk 0:01:02.9]} 27. Rd1 {[%clk 0:00:15.6]} 27... Nf3+
{[%clk 0:01:00.4]} 28. Kh1 {[%clk 0:00:16.6]} 28... Nc6 {[%clk 0:00:59.4]} 29.
Nf1 {[%clk 0:00:17.1]} 29... Nce5 {[%clk 0:01:00.3]} 30. Bf4 {[%clk 0:00:18.2]}
30... Qg4 {[%clk 0:00:59.2]} 31. Bxe5 {[%clk 0:00:18.6]} 31... Bxe5 {[%clk
0:01:00.9]} 32. Nh2 {[%clk 0:00:19]} 32... Qf5 {[%clk 0:01:01.3]} 33. Nxf3
{[%clk 0:00:19.8]} 33... exf3 {[%clk 0:01:03.2]} 34. Qg1 {[%clk 0:00:20.4]}
34... Be4 {[%clk 0:01:00]} 35. Qh2 {[%clk 0:00:21.1]} 35... c4 {[%clk
0:00:56.1]} 36. Re1 {[%clk 0:00:21.8]} 36... Qg4 {[%clk 0:00:48.9]} 37. Rad1
{[%clk 0:00:22]} 37... Kf7 {[%clk 0:00:46]} 38. Kg1 {[%clk 0:00:20.7]} 38... h5
{[%clk 0:00:42.8]} 39. Re3 {[%clk 0:00:21.7]} 39... Bg7 {[%clk 0:00:38.2]} 40.
Rde1 {[%clk 0:00:22.9]} 40... Bc6 {[%clk 0:00:35.7]} 41. Re7+ {[%clk 0:00:21.8]}
41... Kf8 {[%clk 0:00:37.1]} 42. R7e3 {[%clk 0:00:21.5]} 42... Kf7 {[%clk
0:00:36.6]} 43. Qh1 {[%clk 0:00:20.8]} 43... Bh6 {[%clk 0:00:33.8]} 44. Re7+
{[%clk 0:00:20.1]} 44... Kf8 {[%clk 0:00:34.6]} 45. Kh2 {[%clk 0:00:21.6]} 45...
Bf4 {[%clk 0:00:32.7]} 46. Qf1 {[%clk 0:00:20]} 46... Qxh4+ {[%clk 0:00:32.3]}
47. Kg1 {[%clk 0:00:21.2]} 47... Bxg3 {[%clk 0:00:31]} 48. Re8+ {[%clk
0:00:15.8]} 48... Bxe8 {[%clk 0:00:31.8]} 49. Rxe8+ {[%clk 0:00:16.8]} 49...
Kxe8 {[%clk 0:00:32.7]} 50. Qe1+ {[%clk 0:00:18.7]} 50... Qe7 {[%clk 0:00:31.1]}
51. fxg3 {[%clk 0:00:20.6]} 51... Qxe1+ {[%clk 0:00:30.9]} 0-1

[Event "*** Titled Tuesday Blitz"]
[Site "Chess.com"]
[Date "2019.03.05"]
[Round "9"]
[White "Vugar_Manafov"]
[Black "Pechen_Yeltsina"]
[Result "0-1"]
[WhiteElo "2405"]
[BlackElo "2652"]
[TimeControl "180+2"]
[EndTime "15:14:17 PST"]
[Termination "Pechen_Yeltsina won by resignation"]

1. Nf3 {[%clk 0:03:01.9]} 1... g6 {[%clk 0:03:01.2]} 2. g3 {[%clk 0:03:01.6]}
2... Bg7 {[%clk 0:03:02.7]} 3. d4 {[%clk 0:03:03]} 3... d6 {[%clk 0:03:03.8]} 4.
Bg2 {[%clk 0:03:04]} 4... Nd7 {[%clk 0:03:05.3]} 5. O-O {[%clk 0:03:04.5]} 5...
e5 {[%clk 0:03:06.9]} 6. dxe5 {[%clk 0:03:03.1]} 6... dxe5 {[%clk 0:03:07.7]} 7.
e4 {[%clk 0:03:04.6]} 7... Ngf6 {[%clk 0:03:06.2]} 8. Nbd2 {[%clk 0:03:04.8]}
8... O-O {[%clk 0:03:07.3]} 9. c3 {[%clk 0:03:02.1]} 9... a5 {[%clk 0:03:04.5]}
10. Qc2 {[%clk 0:03:01]} 10... a4 {[%clk 0:03:03.4]} 11. Rd1 {[%clk 0:02:56.8]}
11... c6 {[%clk 0:02:58]} 12. Nc4 {[%clk 0:02:55.5]} 12... Ne8 {[%clk
0:02:50.2]} 13. Be3 {[%clk 0:02:51.6]} 13... Qc7 {[%clk 0:02:49.6]} 14. Qd2
{[%clk 0:02:46.6]} 14... b5 {[%clk 0:02:20.9]} 15. Nd6 {[%clk 0:02:44.2]} 15...
Nef6 {[%clk 0:02:22.3]} 16. Nxc8 {[%clk 0:02:26.1]} 16... Rfxc8 {[%clk
0:02:24.2]} 17. Qd6 {[%clk 0:02:27.4]} 17... Qxd6 {[%clk 0:02:24.1]} 18. Rxd6
{[%clk 0:02:29.3]} 18... Bf8 {[%clk 0:02:24.7]} 19. Rd2 {[%clk 0:02:26.1]} 19...
Bc5 {[%clk 0:02:25.2]} 20. Bxc5 {[%clk 0:02:23.6]} 20... Nxc5 {[%clk 0:02:27.1]}
21. Nxe5 {[%clk 0:02:25.3]} 21... Nfxe4 {[%clk 0:02:26.2]} 22. Re2 {[%clk
0:02:24.8]} 22... f5 {[%clk 0:02:24.9]} 23. Bxe4 {[%clk 0:02:14.7]} 23... Nxe4
{[%clk 0:02:24.5]} 24. Rd1 {[%clk 0:02:07.4]} 24... a3 {[%clk 0:02:22.8]} 25. f3
{[%clk 0:01:41.4]} 25... Nf6 {[%clk 0:02:15.1]} 26. Rd6 {[%clk 0:01:26.7]} 26...
axb2 {[%clk 0:02:15.1]} 27. Rxb2 {[%clk 0:01:28.2]} 27... Kg7 {[%clk 0:02:16.3]}
28. Rxc6 {[%clk 0:01:26.9]} 28... Rxc6 {[%clk 0:02:13]} 29. Nxc6 {[%clk
0:01:28.8]} 29... Rc8 {[%clk 0:02:14.4]} 30. Nd4 {[%clk 0:01:13.3]} 30... Rxc3
{[%clk 0:02:03.5]} 31. Rxb5 {[%clk 0:01:02.4]} 31... Rd3 {[%clk 0:02:04.5]} 32.
Ne6+ {[%clk 0:00:28.4]} 32... Kh6 {[%clk 0:02:04.2]} 33. Rb3 {[%clk 0:00:15.1]}
33... Rd1+ {[%clk 0:02:05.3]} 34. Kg2 {[%clk 0:00:16.2]} 34... Rd2+ {[%clk
0:02:07.2]} 35. Kh3 {[%clk 0:00:17.6]} 35... Rxa2 {[%clk 0:02:09.1]} 36. g4
{[%clk 0:00:18.6]} 36... fxg4+ {[%clk 0:02:06.1]} 37. fxg4 {[%clk 0:00:20.5]}
37... Ne4 {[%clk 0:02:07.6]} 38. Re3 {[%clk 0:00:19.9]} 38... Ra4 {[%clk
0:02:00.2]} 39. Kh4 {[%clk 0:00:13.3]} 39... g5+ {[%clk 0:02:00.1]} 40. Kh3
{[%clk 0:00:14]} 40... Nf2+ {[%clk 0:02:01.5]} 41. Kg3 {[%clk 0:00:15.6]} 41...
Nxg4 {[%clk 0:02:03]} 42. Rb3 {[%clk 0:00:16.8]} 42... Nf6 {[%clk 0:02:01.9]}
43. Rb6 {[%clk 0:00:17.4]} 43... Kg6 {[%clk 0:01:58.8]} 44. Nc5 {[%clk
0:00:11.7]} 44... Ra3+ {[%clk 0:01:59]} 45. Kg2 {[%clk 0:00:13.3]} 45... Kf5
{[%clk 0:01:50.9]} 46. Rb5 {[%clk 0:00:14.5]} 46... Ng4 {[%clk 0:01:47]} 47.
Nd7+ {[%clk 0:00:08.9]} 47... Kg6 {[%clk 0:01:39.6]} 48. Nf8+ {[%clk 0:00:08.3]}
48... Kh6 {[%clk 0:01:33.3]} 49. Rb6+ {[%clk 0:00:09.3]} 49... Kg7 {[%clk
0:01:30.4]} 50. Ne6+ {[%clk 0:00:10]} 50... Kf6 {[%clk 0:01:30.8]} 51. Nc5+
{[%clk 0:00:08.2]} 51... Kf5 {[%clk 0:01:30.5]} 52. Rb5 {[%clk 0:00:08.7]} 52...
Ra2+ {[%clk 0:01:26.7]} 53. Kg3 {[%clk 0:00:09.8]} 53... Nxh2 {[%clk 0:01:28.2]}
54. Nd3+ {[%clk 0:00:10]} 54... Kg6 {[%clk 0:01:28.5]} 55. Ne5+ {[%clk
0:00:11.1]} 55... Kh5 {[%clk 0:01:30]} 56. Nf7 {[%clk 0:00:08.7]} 56... h6
{[%clk 0:01:30.1]} 57. Rb6 {[%clk 0:00:09.4]} 57... Nf1+ {[%clk 0:01:29.7]} 58.
Kf3 {[%clk 0:00:10.8]} 58... g4+ {[%clk 0:01:26.3]} 59. Kf4 {[%clk 0:00:11.9]}
59... Rf2+ {[%clk 0:01:26.2]} 60. Ke4 {[%clk 0:00:11.2]} 60... Rxf7 {[%clk
0:01:27.4]} 61. Rb2 {[%clk 0:00:12.4]} 61... g3 {[%clk 0:01:28]} 62. Rg2 {[%clk
0:00:13.4]} 62... Kg4 {[%clk 0:01:29.4]} 63. Rg1 {[%clk 0:00:14.8]} 63... h5
{[%clk 0:01:29.8]} 64. Rh1 {[%clk 0:00:16.7]} 64... h4 {[%clk 0:01:31]} 65. Rg1
{[%clk 0:00:18.4]} 65... Rf2 {[%clk 0:01:31.7]} 66. Kd3 {[%clk 0:00:20]} 66...
h3 {[%clk 0:01:33.1]} 67. Rh1 {[%clk 0:00:21.1]} 67... h2 {[%clk 0:01:34.6]} 68.
Kc4 {[%clk 0:00:20.2]} 68... Kh3 {[%clk 0:01:35.8]} 69. Kd5 {[%clk 0:00:20.5]}
69... Kg2 {[%clk 0:01:36.9]} 70. Rg1+ {[%clk 0:00:21.3]} 70... hxg1=Q {[%clk
0:01:37.8]} 0-1

[Event "*** Titled Tuesday Blitz"]
[Site "Chess.com"]
[Date "2019.03.05"]
[Round "9"]
[White "Stephenzinho"]
[Black "LukasHandler"]
[Result "0-1"]
[WhiteElo "2356"]
[BlackElo "2413"]
[TimeControl "180+2"]
[EndTime "15:14:17 PST"]
[Termination "LukasHandler won by resignation"]

1. e4 {[%clk 0:03:01.9]} 1... c5 {[%clk 0:03:00.4]} 2. Nf3 {[%clk 0:03:02.2]}
2... d6 {[%clk 0:03:01.1]} 3. Nc3 {[%clk 0:03:03.6]} 3... e5 {[%clk 0:02:59.6]}
4. Bc4 {[%clk 0:03:03.7]} 4... Be7 {[%clk 0:03:00.5]} 5. d3 {[%clk 0:03:04.6]}
5... Nf6 {[%clk 0:02:59.8]} 6. O-O {[%clk 0:03:04.9]} 6... O-O {[%clk
0:03:00.6]} 7. Ng5 {[%clk 0:03:01]} 7... h6 {[%clk 0:02:55.4]} 8. Nh3 {[%clk
0:03:00.7]} 8... Nc6 {[%clk 0:02:43.6]} 9. f4 {[%clk 0:03:00.8]} 9... Bg4 {[%clk
0:02:32.1]} 10. Qd2 {[%clk 0:02:59.2]} 10... Bxh3 {[%clk 0:02:24.9]} 11. gxh3
{[%clk 0:03:00]} 11... Nh5 {[%clk 0:02:24.5]} 12. f5 {[%clk 0:02:47.6]} 12...
Bg5 {[%clk 0:02:21.2]} 13. Qg2 {[%clk 0:02:48.1]} 13... Bxc1 {[%clk 0:02:20]}
14. Raxc1 {[%clk 0:02:50]} 14... Qg5 {[%clk 0:02:19.4]} 15. Nd5 {[%clk
0:02:46.9]} 15... Nd4 {[%clk 0:02:08.6]} 16. Kh1 {[%clk 0:02:21.2]} 16... Qxg2+
{[%clk 0:02:00.4]} 17. Kxg2 {[%clk 0:02:23.1]} 17... Kh7 {[%clk 0:01:59.9]} 18.
a4 {[%clk 0:02:13.7]} 18... a6 {[%clk 0:01:38.1]} 19. a5 {[%clk 0:02:12.2]}
19... Nc6 {[%clk 0:01:38.5]} 20. Ra1 {[%clk 0:02:11.8]} 20... Rae8 {[%clk
0:01:33.2]} 21. Nc7 {[%clk 0:02:08.2]} 21... Rd8 {[%clk 0:01:31.1]} 22. Nd5
{[%clk 0:02:09.7]} 22... Rd7 {[%clk 0:01:31.8]} 23. Nb6 {[%clk 0:02:10.4]} 23...
Rdd8 {[%clk 0:01:32.4]} 24. Bd5 {[%clk 0:02:10.2]} 24... Nf4+ {[%clk 0:01:29.9]}
25. Kg3 {[%clk 0:01:49.9]} 25... Nb4 {[%clk 0:01:25.2]} 26. Bxb7 {[%clk
0:01:29.7]} 26... Nxc2 {[%clk 0:01:23.6]} 27. Bxa6 {[%clk 0:01:12.7]} 27... Nxa1
{[%clk 0:01:13.3]} 28. Rxa1 {[%clk 0:01:14.6]} 28... g6 {[%clk 0:00:47.9]} 29.
f6 {[%clk 0:01:09.2]} 29... Ne2+ {[%clk 0:00:41.9]} 30. Kf2 {[%clk 0:01:04.3]}
30... Nd4 {[%clk 0:00:42.8]} 31. Bc4 {[%clk 0:01:03.2]} 31... Nc6 {[%clk
0:00:39.8]} 32. Bd5 {[%clk 0:00:52.4]} 32... Na7 {[%clk 0:00:39.9]} 33. Nc4
{[%clk 0:00:48.6]} 33... g5 {[%clk 0:00:38.5]} 34. h4 {[%clk 0:00:49.8]} 34...
Kg6 {[%clk 0:00:39.4]} 35. Ra3 {[%clk 0:00:45.7]} 35... Kxf6 {[%clk 0:00:38.6]}
36. Rb3 {[%clk 0:00:42.5]} 36... Rb8 {[%clk 0:00:39.7]} 37. Rb6 {[%clk
0:00:33.3]} 37... Rxb6 {[%clk 0:00:40.2]} 38. axb6 {[%clk 0:00:34.1]} 38... Nb5
{[%clk 0:00:41.4]} 39. hxg5+ {[%clk 0:00:26.7]} 39... hxg5 {[%clk 0:00:42]} 40.
Bc6 {[%clk 0:00:21.1]} 40... Nd4 {[%clk 0:00:42.7]} 41. Bd7 {[%clk 0:00:17.4]}
41... Ke7 {[%clk 0:00:43.2]} 42. Ba4 {[%clk 0:00:16.3]} 42... Rb8 {[%clk
0:00:42.5]} 43. Kg3 {[%clk 0:00:14.4]} 43... Ke6 {[%clk 0:00:30.7]} 44. Kg4
{[%clk 0:00:13]} 44... f6 {[%clk 0:00:31.6]} 45. b3 {[%clk 0:00:09]} 45... d5
{[%clk 0:00:31.8]} 46. exd5+ {[%clk 0:00:09.7]} 46... Kxd5 {[%clk 0:00:33.1]}
47. Bd7 {[%clk 0:00:08.6]} 47... Nxb3 {[%clk 0:00:26.9]} 48. Kf5 {[%clk
0:00:05.9]} 48... Nd4+ {[%clk 0:00:28.1]} 49. Kxf6 {[%clk 0:00:06.9]} 49... e4
{[%clk 0:00:29.5]} 50. Ne3+ {[%clk 0:00:06.8]} 50... Kd6 {[%clk 0:00:30.1]} 51.
Bg4 {[%clk 0:00:06.7]} 51... exd3 {[%clk 0:00:31]} 52. Nc4+ {[%clk 0:00:07.7]}
52... Kd5 {[%clk 0:00:32.1]} 0-1

[Event "*** Titled Tuesday Blitz"]
[Site "Chess.com"]
[Date "2019.03.05"]
[Round "9"]
[White "nikitakhoroshev"]
[Black "MathiasWomacka"]
[Result "0-1"]
[WhiteElo "2591"]
[BlackElo "2282"]
[TimeControl "180+2"]
[EndTime "15:14:22 PST"]
[Termination "MathiasWomacka won by resignation"]

1. e4 {[%clk 0:02:56.9]} 1... c5 {[%clk 0:03:00.8]} 2. Nf3 {[%clk 0:02:57.3]}
2... d6 {[%clk 0:03:02.1]} 3. d4 {[%clk 0:02:54.3]} 3... cxd4 {[%clk 0:03:04]}
4. Qxd4 {[%clk 0:02:56.2]} 4... Nc6 {[%clk 0:03:03.7]} 5. Bb5 {[%clk 0:02:47.6]}
5... Bd7 {[%clk 0:03:04.5]} 6. Bxc6 {[%clk 0:02:47.9]} 6... Bxc6 {[%clk
0:03:06.4]} 7. c4 {[%clk 0:02:48.4]} 7... Nf6 {[%clk 0:03:06.1]} 8. Nc3 {[%clk
0:02:44.3]} 8... g6 {[%clk 0:03:07.5]} 9. O-O {[%clk 0:02:39.4]} 9... Bg7 {[%clk
0:03:08.9]} 10. Qd3 {[%clk 0:02:40.6]} 10... O-O {[%clk 0:03:08.9]} 11. Re1
{[%clk 0:02:38.2]} 11... a6 {[%clk 0:03:07.8]} 12. Nd4 {[%clk 0:02:38.1]} 12...
Qc7 {[%clk 0:03:03.5]} 13. b3 {[%clk 0:02:32.1]} 13... Rac8 {[%clk 0:03:03.5]}
14. Bb2 {[%clk 0:02:30.8]} 14... Bd7 {[%clk 0:03:00.9]} 15. Rac1 {[%clk
0:02:28.8]} 15... Qb8 {[%clk 0:03:01.3]} 16. f3 {[%clk 0:02:23.3]} 16... Rfd8
{[%clk 0:02:57.2]} 17. Rcd1 {[%clk 0:02:22.2]} 17... Be8 {[%clk 0:02:55.1]} 18.
Nd5 {[%clk 0:02:18.2]} 18... Nxd5 {[%clk 0:02:54.1]} 19. exd5 {[%clk 0:02:20.1]}
19... b5 {[%clk 0:02:36]} 20. cxb5 {[%clk 0:02:14]} 20... Bxb5 {[%clk
0:02:34.7]} 21. Qd2 {[%clk 0:02:05.9]} 21... Qb7 {[%clk 0:02:33.4]} 22. Nxb5
{[%clk 0:01:58.3]} 22... axb5 {[%clk 0:02:35.2]} 23. Bxg7 {[%clk 0:01:56.9]}
23... Kxg7 {[%clk 0:02:36.6]} 24. Qd4+ {[%clk 0:01:55.6]} 24... Kg8 {[%clk
0:02:37.2]} 25. Qe3 {[%clk 0:01:55.3]} 25... Re8 {[%clk 0:02:33.5]} 26. h4
{[%clk 0:01:55.3]} 26... Rc5 {[%clk 0:02:19]} 27. Qe4 {[%clk 0:01:49.6]} 27...
Qa7 {[%clk 0:02:09.1]} 28. Kh2 {[%clk 0:01:24.2]} 28... Qxa2 {[%clk 0:02:08.6]}
29. Ra1 {[%clk 0:01:13.5]} 29... Qxb3 {[%clk 0:02:04]} 30. Ra7 {[%clk
0:01:10.8]} 30... Qxd5 {[%clk 0:02:01.4]} 31. Qxd5 {[%clk 0:00:55.2]} 31... Rxd5
{[%clk 0:02:03.3]} 32. Rexe7 {[%clk 0:00:56.9]} 32... Rxe7 {[%clk 0:02:03.4]}
33. Rxe7 {[%clk 0:00:58.8]} 33... h5 {[%clk 0:02:03.6]} 34. Rb7 {[%clk
0:00:57.2]} 34... Kg7 {[%clk 0:01:53.8]} 35. Kg3 {[%clk 0:00:55.3]} 35... Kf6
{[%clk 0:01:54.4]} 36. Kf4 {[%clk 0:00:54.2]} 36... Rd4+ {[%clk 0:01:50.4]} 37.
Ke3 {[%clk 0:00:54.4]} 37... Rb4 {[%clk 0:01:47.5]} 38. f4 {[%clk 0:00:45.8]}
38... Rb2 {[%clk 0:01:37.7]} 39. g3 {[%clk 0:00:40]} 39... Rb3+ {[%clk
0:01:37.9]} 40. Ke4 {[%clk 0:00:38.9]} 40... Rxg3 {[%clk 0:01:35.3]} 41. Rxb5
{[%clk 0:00:38.6]} 41... Rg4 {[%clk 0:01:36.6]} 42. Rb6 {[%clk 0:00:38.6]} 42...
Ke6 {[%clk 0:01:33.1]} 43. Rb8 {[%clk 0:00:29.7]} 43... Rxh4 {[%clk 0:01:30.3]}
44. Re8+ {[%clk 0:00:29.8]} 44... Kf6 {[%clk 0:01:28.6]} 45. Rd8 {[%clk
0:00:30.3]} 45... Ke7 {[%clk 0:01:29.2]} 46. Rg8 {[%clk 0:00:30.5]} 46... Rh1
{[%clk 0:01:24.4]} 47. Rh8 {[%clk 0:00:29.5]} 47... Re1+ {[%clk 0:01:20.8]} 48.
Kf3 {[%clk 0:00:29.3]} 48... Ra1 {[%clk 0:01:13.6]} 49. Rc8 {[%clk 0:00:18.2]}
49... Ra3+ {[%clk 0:01:12.2]} 50. Ke4 {[%clk 0:00:18.3]} 50... Ra4+ {[%clk
0:01:12.8]} 51. Kd5 {[%clk 0:00:17.6]} 51... Rxf4 {[%clk 0:01:11.9]} 52. Rc7+
{[%clk 0:00:18.1]} 52... Kf6 {[%clk 0:01:12.9]} 53. Kxd6 {[%clk 0:00:18.6]}
53... Rd4+ {[%clk 0:01:12.2]} 0-1